Cogmind - Beta 13 @@@ ROGUE MODE // 2024.04.22 @ 22:32:18 Player: puppuppit Result: Destroyed by Y-45 Defender with Beam Rifle Performance ------------- Evolutions (2) 1000 Regions Visited (6) 1200 Robots Destroyed (73) 365 Value Destroyed (3146) 3146 Prototype IDs (28) 560 Alien Tech Used (0) 0 Bonus (1604) 1604 TOTAL SCORE: 7875 Bonus ------- High Alert Combat Kills 925 Follower Combat Kills 179 Entered Garrisons 200 Aligned with FarCom 300 Cogmind --------- Core Integrity 0/550 Matter 10/300 Energy 100/100 System Corruption 6% Temperature Cool (9) Movement Flying (45) Location -8/Garrison Parts ------- > --- POWER (1) -------- (None) > --- PROPULSION (5) --- Field Propulsion Drive > --- UTILITY (3) ------ Small Storage Unit Target Analyzer > --- WEAPON (2) ------- (None) > --- INVENTORY (8) ---- Large Matter Pod (0) Kinecellerator High-powered Shock Rifle High-powered Shock Rifle Missile Launcher Missile Launcher Remote Datajack Peak State ------------ > --- POWER ------------ Light Deuterium Engine > --- PROPULSION ------- Flight Unit Flight Unit VTOL Module VTOL Module Cesium-ion Thruster > --- UTILITY ---------- Advanced Heat Sink Small Storage Unit System Shield > --- WEAPON ----------- Enhanced Autogun Enhanced Autogun > --- INVENTORY -------- Light Nuclear Core VTOL Module Large Matter Pod Reaction Control System Enhanced Autogun Deploy-a-Sentry Deploy-a-Sentry Deploy-a-Sentry [Rating: 32] Favorites ----------- Power Micro Nuclear Core Engine Light Deuterium Engine Power Core Micro Nuclear Core Propulsion Aluminum Leg Leg Aluminum Leg Wheel Compact Wheel Hover Unit Hover Unit Flight Unit VTOL Module Utility Small Storage Unit Device Kinecellerator Storage Small Storage Unit Processor Target Analyzer Hackware Hacking Suite Protection Light Armor Plating Weapon Enhanced Autogun Energy Gun Small Laser Ballistic Gun Enhanced Autogun Launcher Missile Launcher Piercing Weapon Spear Build | -11 -10 -10 -10 -9 -8 -8 ------- Run | Yrd Mat Min Exi Min Mat Gar Slots Evolved 4 | . . . . . 4 . Power . | . . . . . . . Propulsion 3 | . . . . . 3 . Utility 1 | . . . . . 1 . Weapon . | . . . . . . . Parts Attached 123 | 8 3 . 1 . 55 56 Power 10 | 1 . . . . 6 3 Engine 5 | 1 . . . . 4 . Core 5 | . . . . . 2 3 Reactor . | . . . . . . . Propulsion 38 | 2 2 . . . 17 17 Treads . | . . . . . . . Leg 8 | . . . . . . 8 Wheel 2 | 2 . . . . . . Hover 4 | . 2 . . . . 2 Flight 24 | . . . . . 17 7 Utility 21 | 2 . . 1 . 11 7 Device 14 | 1 . . 1 . 7 5 Storage 3 | 1 . . . . 2 . Processor 1 | . . . . . . 1 Hackware 2 | . . . . . 2 . Protection 1 | . . . . . . 1 Artifact . | . . . . . . . Weapon 54 | 3 1 . . . 21 29 Energy Gun 7 | 2 1 . . . . 4 Energy Cannon . | . . . . . . . Ballistic Gun 33 | 1 . . . . 18 14 Ballistic Cannon . | . . . . . . . Launcher 13 | . . . . . 3 10 Special Weapon . | . . . . . . . Impact Weapon . | . . . . . . . Slashing Weapon . | . . . . . . . Piercing Weapon 1 | . . . . . . 1 Special Melee Weapon . | . . . . . . . Unidentified Prototypes 2 | . . . . . 2 . Parts Lost 27 | . 1 . . . 3 23 Power 2 | . . . . . . 2 Propulsion 19 | . 1 . . . 2 16 Utility 3 | . . . . . 1 2 Weapon 3 | . . . . . . 3 Highest Loss Streak 5 | . 1 . . . 1 5 To Critical Strikes . | . . . . . . . Average Slot Usage (%) 84 | . 86 42 43 . 90 87 Engine 2 | . 11 . . . 5 1 Core 4 | . . . . . 2 6 Leg 15 | . . . . . . 28 Hover 2 | . 8 14 14 . . . Flight 17 | . . . . . 39 8 Device 4 | . 11 . 1 . 3 5 Storage 9 | . 14 14 14 . 9 9 Processor 1 | . . . . . . 3 Hackware 7 | . . . . . 12 6 Energy Gun 3 | . 17 14 14 . . 1 Ballistic Gun 12 | . 9 . . . 15 13 Naked Turns . | . . . . . . . Heaviest Build 24 | 12 12 6 6 6 21 24 Greatest Support 50 | 32 32 6 6 6 21 50 Greatest Overweight (x) 6 | . 1 . . . 2 6 Average Overweight (x) . | . . . . . . . Largest Inventory Capacity 8 | 8 8 8 8 8 8 8 Average Capacity 7 | 7 8 8 8 8 8 8 Most Carried 8 | 2 5 6 8 8 8 8 Average Carried 7 | 1 3 5 6 8 7 7 Final Capacity 8 | 8 8 8 8 8 8 8 Final Carried 8 | 2 5 6 8 8 8 7 Class Distribution -------------------- 37% | Scavenger-Mutant 26% | Mutant 23% | Hacker-Sprinter 6% | Sprinter 6% | Scavenger-Sprinter Dominant Class ---------------- Mutant | -10/Materials Mutant | -10/Mines Mutant | -10/Exiles Mutant | -9/Mines Hacker-Sprinter | -8/Materials Scavenger-Mutant | -8/Garrison Resources | -11 -10 -10 -10 -9 -8 -8 ----------- Run | Yrd Mat Min Exi Min Mat Gar Matter Collected 3112 | 271 60 . 30 . 1641 1110 Remotely 144 | 84 60 . . . . . Salvage Created 2431 | 93 144 60 . . 1187 947 Parts 154 | 3 13 6 . . 86 46 Haulers Intercepted 3 | . . . . . 3 . Recyclers Shooed . | . . . . . . . Parts Field Recycled . | . . . . . . . Retrieved Matter . | . . . . . . . Parts Self-Destructed . | . . . . . . . Prevented . | . . . . . . . Kills | -11 -10 -10 -10 -9 -8 -8 ------- Run | Yrd Mat Min Exi Min Mat Gar Combat Hostiles Destroyed 55 | . 3 . . . 24 28 Guns 43 | . 3 . . . 19 21 AOE 12 | . . . . . 5 7 Classes Destroyed 14 | 1 2 2 . . 7 2 Worker 1 | . . 1 . . . . Builder 1 | . . . . . 1 . Tunneler 3 | . . 1 . . 2 . Hauler 3 | . . . . . 3 . Recycler 5 | 1 1 . . . 3 . Operator 1 | . . . . . 1 . Watcher 4 | . 1 . . . 3 . Swarmer 17 | . 3 . . . 7 7 Cutter 3 | . . . . . 3 . Grunt 19 | . . . . . 6 13 Duelist 2 | . . . . . . 2 Sentry 9 | . . . . . 6 3 Hunter 2 | . . . . . 2 . Programmer 3 | . . . . . . 3 Best Kill Streak 9 | 1 3 2 . . 7 9 Combat Bots Only 9 | . 2 . . . 5 9 Max Kills in Single Turn 2 | 1 2 1 . . 2 2 Gunslinging 1 | . 1 . . . . . Exploded 2 | . . . . . 2 2 Melee . | . . . . . . . Uniques/NPCs Destroyed . | . . . . . . . Combat | -11 -10 -10 -10 -9 -8 -8 -------- Run | Yrd Mat Min Exi Min Mat Gar Hostile Shots Fired 301 | . 14 5 . 1 86 195 Missed 97 | . 3 3 . . 27 64 Damage Taken 3080 | . 92 39 . 12 1033 1904 Core 576 | . 17 5 . . 222 332 Absorbed by Shields 126 | . . . . . 52 74 Regen/Repaired (Parts) 95 | . . . . . 95 . Core Remaining (%) 95 | 100 . . . 91 . . Volleys Fired 281 | 4 14 2 . . 123 138 Largest 2 | 2 2 1 . . 2 2 Hottest 90 | 60 80 40 . . 61 90 Shots Fired 501 | 8 24 2 . . 239 228 Gun 478 | 8 24 2 . . 230 214 Cannon . | . . . . . . . Launcher 23 | . . . . . 9 14 Special . | . . . . . . . Kinetic 427 | 4 6 . . . 224 193 Thermal 35 | 4 18 2 . . 6 5 Explosive 23 | . . . . . 9 14 Electromagnetic 16 | . . . . . . 16 Robot Hit Streak 23 | 4 5 6 . . 9 23 Robot Miss Streak 5 | 3 3 . . . 5 4 Penetration Max . | . . . . . . . Secondary Targets 2 | . 1 . . . 1 . Max Gunslinging Chain 1 | . 1 . . . 1 . Shots Hit Robots 287 | 4 13 2 . . 136 132 Core Hits 133 | 2 7 2 . . 63 59 Critical Kills . | . . . . . . . Critical Parts Destroyed 3 | . . . . . 1 2 Critical Strikes 3 | . . . . . 1 2 Destroy 3 | . . . . . 1 2 Melee Attacks 1 | . . . . . . 1 Impact . | . . . . . . . Slashing . | . . . . . . . Piercing 1 | . . . . . . 1 Sneak Attacks . | . . . . . . . Combat Hostiles . | . . . . . . . Follow-up Attacks . | . . . . . . . Damage Inflicted 6446 | 46 152 36 . . 2765 3447 Guns 4567 | 46 147 22 . . 1972 2380 Cannons . | . . . . . . . Explosions 1779 | . . . . . 793 986 Melee 35 | . . . . . . 35 Ramming 65 | . 5 14 . . . 46 Kinetic 4276 | 23 25 . . . 1925 2303 Thermal 268 | 23 122 22 . . 69 32 Explosive 1757 | . . . . . 771 986 Electromagnetic 45 | . . . . . . 45 Impact . | . . . . . . . Slashing . | . . . . . . . Piercing 35 | . . . . . . 35 Highest Corruption 6 | . . . . . . 6 Average Corruption 4 | . . . . . . 4 Corruption Purged . | . . . . . . . Corruption Blocked . | . . . . . . . Effects 45 | . . . . . . 45 Message Errors 10 | . . . . . . 10 Matter Fused 15 | . . . . . . 15 Heat Flow Errors 7 | . . . . . . 7 Energy Discharges 8 | . . . . . . 8 Parts Fused 1 | . . . . . . 1 Data Loss (minor) 1 | . . . . . . 1 Data Loss (major) 1 | . . . . . . 1 Misfires 1 | . . . . . . 1 Weapon Failures 1 | . . . . . . 1 Overload Shots . | . . . . . . . Overflow Damage 50 | . . . . . 47 3 Projectiles . | . . . . . . . Explosions 50 | . . . . . 47 3 Melee . | . . . . . . . Knockbacks . | . . . . . . . Impact . | . . . . . . . Kinetic . | . . . . . . . Secondary . | . . . . . . . Self-Inflicted Damage 117 | . 2 7 . . 108 . Shots 2 | . . . . . 2 . Rammed 3 | . 1 2 . . . . Targets Rammed 29 | . 1 2 . . . 26 Kicked 26 | . . . . . . 26 Crushed . | . . . . . . . Highest Temperature 312 | . 113 5 . . 125 312 Average Temperature 41 | . 47 3 . . 40 42 Received Heat Transfer 839 | . . 18 . 6 185 630 Siege Activations . | . . . . . . . Robots Corrupted . | . . . . . . . Combat Hostiles . | . . . . . . . Parts Fried . | . . . . . . . Impact Corruptions . | . . . . . . . Robots Melted . | . . . . . . . Combat Hostiles . | . . . . . . . Parts Melted . | . . . . . . . Heat Transferred 599 | 50 275 50 . . 150 74 Parts Sabotaged . | . . . . . . . Parts Stolen . | . . . . . . . Parts Stripped . | . . . . . . . Power Chain Reactions . | . . . . . . . Alert | -11 -10 -10 -10 -9 -8 -8 ------- Run | Yrd Mat Min Exi Min Mat Gar Peak Influence 2110 | 5 123 102 . . 1021 2110 Initial 663 | . 3 47 . . . 663 Average 1024 | 2 53 52 . . 408 1547 Maximum Alert Level 5 | . . . . . 3 5 Low Security (%) 24 | 100 100 100 . 100 45 . Level 1 1 | . . . . . 6 . Level 2 8 | . . . . . 24 . Level 3 12 | . . . . . 24 8 Level 4 29 | . . . . . . 50 Level 5 23 | . . . . . . 40 High Security . | . . . . . . . Max Security . | . . . . . . . Squads Dispatched 6 | . 2 . . . 4 . Investigation 3 | . 2 . . . 1 . Extermination . | . . . . . . . Reinforcement 2 | . . . . . 2 . Assault . | . . . . . . . Garrison 1 | . . . . . 1 . Intercept . | . . . . . . . Searches Triggered . | . . . . . . . Construction Impeded . | . . . . . . . Haulers Reinforced . | . . . . . . . Active Scanning Responses . | . . . . . . . Cargo Convoy Interrupts . | . . . . . . . Stealth | -11 -10 -10 -10 -9 -8 -8 --------- Run | Yrd Mat Min Exi Min Mat Gar Distress Signals 5 | . 1 1 . . 3 . Communications Jammed . | . . . . . . . Distress Signals . | . . . . . . . Times Spotted 91 | . 5 3 . 2 39 42 Peak Tracking Total 7 | . 3 4 . 2 7 6 Tactical Retreats 15 | . . 2 . . 6 7 Traps | -11 -10 -10 -10 -9 -8 -8 ------- Run | Yrd Mat Min Exi Min Mat Gar Traps Triggered 8 | . 1 . . . 1 6 Indirectly . | . . . . . . . Trap Hack Attempts . | . . . . . . . Triggered . | . . . . . . . Disarmed . | . . . . . . . Reprogrammed . | . . . . . . . Reused . | . . . . . . . Traps Extracted . | . . . . . . . Installed . | . . . . . . . Triggered . | . . . . . . . Machines | -11 -10 -10 -10 -9 -8 -8 ---------- Run | Yrd Mat Min Exi Min Mat Gar Machines Disabled 13 | . . . . . 6 7 Max in Single Turn 2 | . . . . . 2 2 Garrison Relay 4 | . . . . . . 4 Phase Generator 1 | . . . . . . 1 Machines Repaired . | . . . . . . . Machines Dismantled . | . . . . . . . Machines Sabotaged . | . . . . . . . Overloaded Fab Kills . | . . . . . . . Hacking | -11 -10 -10 -10 -9 -8 -8 --------- Run | Yrd Mat Min Exi Min Mat Gar Machines Accessed 21 | . 1 . 5 . 13 2 Terminals 11 | . 1 . . . 8 2 Fabricators . | . . . . . . . Repair Stations 2 | . . . . . 2 . Recycling Units 1 | . . . . . 1 . Scanalyzers 1 | . . . . . 1 . Garrison Access 1 | . . . . . 1 . Total Hacks 112 | . 7 . 50 . 49 6 Successful 79 | . 5 . 50 . 24 . Failed 33 | . 2 . . . 25 6 Catastrophic 5 | . . . . . 4 1 Database Lockouts . | . . . . . . . Manual 27 | . 7 . 1 . 19 . Terminals 42 | . 7 . . . 29 6 Fabricators . | . . . . . . . Repair Stations 13 | . . . . . 13 . Recycling Units 1 | . . . . . 1 . Scanalyzers 5 | . . . . . 5 . Garrison Access 1 | . . . . . 1 . Terminal Hacks 63 | . 5 . 50 . 8 . Record 49 | . . . 49 . . . Robot Analysis 6 | . 5 . . . 1 . Prototype ID Bank 2 | . . . . . 2 . Terminal Index 1 | . . . . . 1 . Scanalyzer Index 1 | . . . . . 1 . Zone Layout 3 | . . . . . 3 . Derelict Proto ID Bank 1 | . . . 1 . . . Fabricator Hacks . | . . . . . . . Repair Station Hacks 10 | . . . . . 10 . Scan Component 5 | . . . . . 5 . Repair 5 | . . . . . 5 . Recycling Unit Hacks 1 | . . . . . 1 . Retrieve Components 1 | . . . . . 1 . Scanalyzer 4 | . . . . . 4 . Insert Component 2 | . . . . . 2 . Analyze 2 | . . . . . 2 . Garrison Access Hacks 1 | . . . . . 1 . Unlock Access 1 | . . . . . 1 . Unauthorized Hacks . | . . . . . . . Terminals . | . . . . . . . Fabricators . | . . . . . . . Repair Stations . | . . . . . . . Recycling Units . | . . . . . . . Scanalyzers . | . . . . . . . Garrison Access . | . . . . . . . Data Cores Recovered . | . . . . . . . Used . | . . . . . . . Hacking Detections 13 | . 1 . . . 10 2 Full Trace Events 5 | . 1 . . . 2 2 Feedback Events 1 | . . . . . . 1 Corruption 1 | . . . . . . 1 Feedback Blocked . | . . . . . . . Robot Schematics Acquired . | . . . . . . . Robots Built . | . . . . . . . Authchips . | . . . . . . . Time . | . . . . . . . Total Robot Build Rating . | . . . . . . . Part Schematics Acquired 2 | . . . . . 2 . Parts Built . | . . . . . . . Authchips . | . . . . . . . Time . | . . . . . . . Total Part Build Rating . | . . . . . . . Parts Repaired 5 | . . . . . 5 . Time 182 | . . . . . 182 . Parts Recycled . | . . . . . . . Recycled Matter . | . . . . . . . Retrieved Matter . | . . . . . . . Retrieved Components 3 | . . . . . 3 . Parts Scanalyzed 2 | . . . . . 2 . Part Schematics Acquired 2 | . . . . . 2 . Parts Damaged . | . . . . . . . Bothacking | -11 -10 -10 -10 -9 -8 -8 ------------ Run | Yrd Mat Min Exi Min Mat Gar Used RIF Installer . | . . . . . . . Robots Hacked . | . . . . . . . Non-combat . | . . . . . . . Combat . | . . . . . . . Robot Hacks Applied . | . . . . . . . Relay Couplers Released 16 | . . . . . . 16 Machine Destruction 16 | . . . . . . 16 Fabnet Peak Effective % . | . . . . . . . Robots Rewired . | . . . . . . . Allies Hacked . | . . . . . . . Hacks Repelled . | . . . . . . . Allies | -11 -10 -10 -10 -9 -8 -8 -------- Run | Yrd Mat Min Exi Min Mat Gar Total Allies . | . . . . . . . Largest Group . | . . . . . . . Highest-Rated Group . | . . . . . . . Highest-Rated Ally . | . . . . . . . Total Orders 3 | . . . 3 . . . EXPLORE 1 | . . . 1 . . . RETURN 2 | . . . 2 . . . Ally Attacks 36 | . . . . . 16 20 Total Damage 2005 | . . . . . 853 1152 Kills 5 | . . . . . 2 3 Allies Corrupted . | . . . . . . . Allies Melted . | . . . . . . . Turrets Deployed 3 | . . . . . 2 1 Intel | -11 -10 -10 -10 -9 -8 -8 ------- Run | Yrd Mat Min Exi Min Mat Gar Robot Analysis Total 6 | . 5 . . . 1 . Derelict Logs Recovered 1 | . . 1 . . . . Drone Launches 1 | . . . 1 . . . Drone Recoveries 1 | . . . 1 . . . Exploration | -11 -10 -10 -10 -9 -8 -8 ------------- Run | Yrd Mat Min Exi Min Mat Gar Turns Passed 3708 | 61 140 150 190 7 1142 2018 Spaces Moved 3572 | 36 105 238 269 11 1352 1561 Core 19 | 1 . . . . 1 17 Treads . | . . . . . . . Legs 915 | . . . . . . 915 Wheels 95 | 35 60 . . . . . Hover 646 | . 45 238 269 11 23 60 Flight 1897 | . . . . . 1328 569 Fastest Speed 24 | 50 56 60 60 60 24 24 Average Speed 59 | 98 86 60 60 60 25 86 Slowest Speed 350 | 100 120 60 60 60 150 350 Overloaded Moves . | . . . . . . . Propulsion Burnouts . | . . . . . . . Robots Hopped 6 | . . . . . 4 2 Cave-ins Triggered . | . . . . . . . Exploration Rate (%) 47 | 4 30 36 91 7 76 87 Regions Visited 6 Branch Regions 3 Pre-discovered Areas 1 | . . . 1 . . . Known Exits Taken 1 | . . . . . 1 . Unknown Exits Taken 5 | 1 1 1 1 1 . . Scrap Searched . | . . . . . . . Spaces Dug . | . . . . . . . Terrain Destroyed 349 | . . . . . 164 185 Melee . | . . . . . . . Projectile . | . . . . . . . AOE 349 | . . . . . 164 185 Terrain Rammed . | . . . . . . . Walls Destroyed . | . . . . . . . Machines Disabled . | . . . . . . . Actions | -11 -10 -10 -10 -9 -8 -8 --------- Run | Yrd Mat Min Exi Min Mat Gar Total 4762 | 49 131 242 300 10 1980 2050 Wait 592 | . 2 . 17 . 406 167 Move 3555 | 35 104 237 268 10 1344 1557 Hop 6 | . . . . . 4 2 Pick Up 35 | 1 . 1 7 . 12 14 Fast Attach 53 | 8 2 . 1 . 25 17 Attach 14 | . . . . . 3 11 Detach 20 | 1 5 . 1 . 4 9 Swap 56 | . 1 . . . 27 28 Drop 61 | . 2 . 6 . 32 21 Fire 281 | 4 14 2 . . 123 138 Melee 1 | . . . . . . 1 Ram 3 | . 1 2 . . . . Kick 26 | . . . . . . 26 Crush . | . . . . . . . Escape Stasis 59 | . . . . . . 59 Rewire . | . . . . . . . Trap . | . . . . . . . Miscellaneous . | . . . . . . . Route ------- -11/Scrapyard -10/Materials -10/Mines (discovered 2 exits: [*Mat] / *Exi) -10/Exiles (discovered 2 exits: [*Min x2]) -9/Mines -8/Materials (discovered 3 exits: [*Fac x2] / Gar) -8/Garrison (discovered 3 exits: [*Mat x3]) History --------- Turn | Location | Event 9 | -11/Scrapyard | Discovered new exit (range 15) 62 | -11/Scrapyard | Entered Materials 184 | -10/Materials | Discovered new exit (range 12) 202 | -10/Materials | Entered Mines 213 | -10/Mines | Learned Materials security intel 216 | -10/Mines | Assembled infested the area 221 | -10/Mines | Assisted by a Guerilla fighting off Assembled 227 | -10/Mines | Deemed a non-threat by the Exiles lab entrance 227 | -10/Mines | Discovered new exit (range 5) 270 | -10/Mines | Discovered new exit (range 10) 315 | -10/Mines | Build established: Mutant 352 | -10/Mines | Entered Exiles 362 | -10/Exiles | Discovered new exit (range 15) 369 | -10/Exiles | Met 8R-AWN 378 | -10/Exiles | Met EX-HEX 395 | -10/Exiles | Met EX-BIN 403 | -10/Exiles | Aligned with FarCom system 404 | -10/Exiles | Given EX-Vault access code 427 | -10/Exiles | Opened EX-Vault 432 | -10/Exiles | Found Deploy-a-Sentry 434 | -10/Exiles | Found Deploy-a-Sentry 436 | -10/Exiles | Found Deploy-a-Sentry 448 | -10/Exiles | Found Supersonic Drone Bay 453 | -10/Exiles | Discovered new exit (range 55) 479 | -10/Exiles | Warned to stay clear of 0b10 Research branches 497 | -10/Exiles | Met EX-DEC 504 | -10/Exiles | Learned location of Zion (-6) 542 | -10/Exiles | Left Exiles lab with Deploy-a-Sentry 542 | -10/Exiles | Entered Mines 546 | -9/Mines | Discovered new exit (range 3) 549 | -9/Mines | Entered Materials 549 | -8/Materials | Evolved 4 slots: Propulsion x3, Utility x1 1169 | -8/Materials | Discovered new exit (range 9) 1225 | -8/Materials | Repaired VTOL Module? 1320 | -8/Materials | Repaired Flight Unit 1354 | -8/Materials | Repaired VTOL Module 1387 | -8/Materials | Repaired VTOL Module 1408 | -8/Materials | Build established: Hacker-Sprinter 1449 | -8/Materials | Repaired Enh. Autogun 1486 | -8/Materials | DAS Turret deployed 1507 | -8/Materials | DAS Turret deployed 1513 | -8/Materials | Discovered new exit (range 11) 1673 | -8/Materials | Garrison activated, responded to threat 1691 | -8/Materials | Identified exit to Garrison 1691 | -8/Materials | Entered Garrison 1696 | -8/Garrison | Triggered checkpoint 1736 | -8/Garrison | Garrison Relay disabled 1898 | -8/Garrison | Destroyed 9 combat bots 2003 | -8/Garrison | Core integrity fell below 50% 2023 | -8/Garrison | Triggered checkpoint 2104 | -8/Garrison | Lost 5 parts (1p4n) 2159 | -8/Garrison | Garrison Relay disabled 2241 | -8/Garrison | Lost 3 parts (3n) 2360 | -8/Garrison | Discovered new exit (range 10) 2404 | -8/Garrison | Triggered checkpoint 2457 | -8/Garrison | Garrison Relay disabled 2520 | -8/Garrison | Triggered checkpoint 2657 | -8/Garrison | Lost 3 parts (1n2w) 2694 | -8/Garrison | Triggered checkpoint 2709 | -8/Garrison | Build established: Scavenger-Mutant 2802 | -8/Garrison | Core integrity fell below 20% 2835 | -8/Garrison | Discovered new exit (range 8) 2914 | -8/Garrison | Triggered checkpoint 3099 | -8/Garrison | DAS Turret deployed 3218 | -8/Garrison | Triggered checkpoint 3437 | -8/Garrison | Spotted B-75 Beast 3455 | -8/Garrison | Allies destroyed B-75 Beast 3516 | -8/Garrison | Phase Generator disabled 3624 | -8/Garrison | Discovered new exit (range 11) 3654 | -8/Garrison | Garrison Relay disabled 3709 | -8/Garrison | Destroyed by Y-45 Defender with Beam Rifle Last Messages --------------- 03588_ System corrupted: Matter fused (-5). 03604_ System corrupted: Energy discharge (-45). 03624_ EXIT=FOUND 03654_ Garrison Relay disabled. 03654_ Relay Coupler [Swarmer] tumbles out of relay unit. 03654_ Relay Coupler [Duelist] tumbles out of relay unit. 03654_ Relay Coupler [Sentry] tumbles out of relay unit. 03672_ System corrupted: Heat flow error (+295). 03688_ Dropped Hpw. Shock Rifle. 03688_ Dropped Hvy. Assault Rifle. 03689_ Dropped Kinecellerator. 03689_ Dropped Mic. Nuclear Core. 03690_ Discarded Aluminum Leg. 03692_ Triggered Alarm Trap. 03692_ An alarm sounds. 03692_ Y-45 Defender springs to life. 03695_ Aluminum Leg destroyed. 03699_ Dropped Spear. 03700_ Acquired Field Propulsion Drive. 03700_ Aluminum Leg destroyed. Map ----- +----------------------------------------------------+ | ??????????????????????????????# #??????????????## | | ??????????????????????????????# #???????????????# | | ?????????###################### #???????????????# | | ?????????# #???????????????? | | ?????????# #???????????????? | | ?????????# #### ############## #???????????????? | | ?????????# #??# #????????????# #???????????????? | | ?????????# #??# #????????????# #???????????????? | | ?????????# #??# #????????????# #???????????????? | | ?????????# #??# #????????????# #???????????????? | | ?????????# #??# ############## #???????????????? | | ?????????# #??# ##""""""""""## #???????????????? | | ?????????# #??# ##"""! !|"""## #???????????????? | | ?????????# ###? ?#"" / ""#? #???????????????? | | ?????????# ## ##"! ="#? #???????????????? | | ?????????# < ##"! #### *"#? #???????????????? | | ?????????# #####"!Y # ["#? #???????????????? | | ?????????# ###???#"] # Y !"#? ????????????????? | | ?????????# #?????#"! ####Y!"#? ????????????????? | | ?????????# #?????#"[ Y ["#? ????????????????? | | ?????????# #?????#"" * ""#???????????????????? | | ?????????# #?????### ![ ###???????????????????? | | ?????????# #???????# YY[ #?????????????????????? | | ?????????# #???????### ###?????????????????????? | | ####"""### ########### ###### #???????????????? | | @ #???????????????? | | #???????????????? | | ########### ############ #######???????????????? | | ??????????# #??????????? ????????????????????? | | ??????????# #??????????? "???????????????????? | | ???????#" #??????????? T#???????????????????? | | ???????#" #????????????###???????????????????? | | ???????#"!!!###??????????????????????????????????? | | ???????#"" "?????????????????????????????????????? | | ???????#####?????????????????????????????????????? | | ?????????????????????????????????????????????????? | | ?????????????????????????????????????????????????? | | ?????????????????????????????????????????????????? | | | | | | | | | | | | | | | | | | | | | | | | | +----------------------------------------------------+ Best States ------------- Heat Dissipation 50 Energy Generation 15 Energy Capacity 160 Matter Stores 300 Matter Capacity 300 Sight Range 16 Terrain Scan Range 16 Terrain Scan Density 10 Armor Coverage 150 Evasion (%) 65 Target Analysis 5 Kinecelleration 30 Offensive Hacking 10 Defensive Hacking 10 Item Schematics ----------------- Cesium-ion Thruster | -8/Materials | Scanalyzed Enh. Autogun | -8/Materials | Scanalyzed Robot Schematics ------------------ None Fabricated ------------ Nothing Alien Tech Used ----------------- None Achievements -------------- None Challenges ------------ None Game ------ Seed LongswordScanCalibrator Manual? 0 Play Time 00:54:11 Cumulative 262.9 hours Start 2024.04.22 @ 21:40:13 End 2024.04.22 @ 22:32:18 Sessions 1 Manual Loads 0 Difficulty Rogue Special Mode None Game No. 108 Rogue 108 Adventurer 0 Explorer 0 Win Type - Total 1 Types 0/0/1/0/0/0/0/0/0 Lore% 65 Gallery% 71 Achievement% 58 Wizard Run 0 Options --------- Layout 0 ASCII 0 Keyboard 1 Movement Arrows Keybinds 0 Fullscreen 1 Font 12/Proggy Map View 83x54 Zoom Use 0% Tactical HUD 1 Map Filters NONE Filters NONE Steam 0 RUN: d28807f0-507e-4051-8902-62b7f8c8de94